fUSD/lending_fUSD_20241106
["ID","MTS","AMOUNT","RATE_DAILY","PERIOD"]
[341462281,1730908252027,-176.254684,0.00035616,7]
[341462282,1730908252038,-516.62055423,0.00035616,7]
[341462283,1730908252047,-500.0,0.00035616,7]
[341462284,1730908252056,-299.8951,0.00035616,7]
[341462285,1730908252065,-500.0,0.00035616,7]
[341462286,1730908252074,-299.8951,0.00035616,7]
[341462287,1730908252083,-500.0,0.00035616,7]
[341462288,1730908252093,-509.72869158,0.00035616,7]
[341462289,1730908252103,-500.0,0.00035616,7]
[341462290,1730908252112,-299.8951,0.00035616,7]
[341462291,1730908252121,-500.0,0.00035616,7]
[341462292,1730908252130,-500.0,0.00035616,7]
[341462293,1730908252139,-888.58,0.00035616,7]
[341462294,1730908252152,-500.0,0.00035616,7]
[341462295,1730908252161,-494.92644714,0.00035616,7]
[341462296,1730908252170,-500.0,0.00035616,7]
[341462297,1730908252180,-314.55363608,0.00035616,7]
[341462298,1730908252189,-500.0,0.00035616,7]
[341462299,1730908252199,-500.0,0.00035616,7]
[341462300,1730908252208,-1962.27,0.00035616,7]
[341462301,1730908252218,-354.5254674,0.00035616,7]
[341462302,1730908252228,-251.38178062,0.00035616,7]
[341462303,1730908252237,-250.0,0.00035616,7]
[341462304,1730908252247,-500.0,0.00035616,7]
[341462305,1730908252256,-500.0,0.00035616,7]
[341462306,1730908252265,-1018.89,0.00035616,7]
[341462307,1730908252275,-500.0,0.00035616,7]
[341462308,1730908252285,-1045.55,0.00035616,7]
[341462309,1730908252295,-284.32223674,0.00035616,7]
[341462310,1730908252304,-500.0,0.00035616,7]
[341462311,1730908252314,-606.10266951,0.00035616,7]
[341462312,1730908252323,-532.71201241,0.00035616,7]
[341462313,1730908252332,-500.0,0.00035616,7]
[341462314,1730908252341,-500.0,0.00035616,7]
[341462315,1730908252350,-1085.75,0.00035616,7]
[341462316,1730908252360,-913.56,0.00035616,7]
[341462317,1730908252369,-521.22482519,0.00035616,7]
[341462318,1730908252378,-617.01,0.00035616,7]
[341462319,1730908252387,-500.0,0.00035616,7]
[341462320,1730908252398,-500.0,0.00035616,7]
[341462321,1730908252407,-500.0,0.00035616,7]
[341462322,1730908252416,-500.0,0.00035616,7]
[341462323,1730908252426,-289.72485261,0.00035616,7]
[341462324,1730908252436,-589.00283893,0.00035616,7]
[341462325,1730908252445,-507.79698198,0.00035616,7]
[341462326,1730908252455,-500.0,0.00035616,7]
[341462327,1730908252464,-4948.79,0.00035616,7]
[341462328,1730908252474,-500.0,0.00035616,7]
[341462329,1730908252483,-500.0,0.00035616,7]
[341462330,1730908252493,-567.91,0.00035616,7]
[341462331,1730908252502,-449.03011285,0.00035616,7]
[341462332,1730908252512,-500.0,0.00035616,7]
[341462333,1730908252521,-500.0,0.00035616,7]
[341462334,1730908252531,-500.0,0.00035616,7]
[341462335,1730908252541,-500.0,0.00035616,7]
[341462336,1730908252551,-500.0,0.00035616,7]
[341462337,1730908252561,-500.0,0.00035616,7]
[341462338,1730908252570,-543.32,0.00035616,7]
[341462339,1730908252579,-1290.92,0.00035616,7]
[341462340,1730908252589,-500.0,0.00035616,7]
[341462341,1730908252598,-219.14171729,0.00035616,7]
[341462342,1730908252607,-500.0,0.00035616,7]
[341462343,1730908252617,-500.0,0.00035616,7]
[341462344,1730908252626,-500.0,0.00035616,7]
[341462345,1730908252639,-888.35,0.00035616,7]
[341462346,1730908252652,-500.0,0.00035616,7]
[341462347,1730908252665,-500.0,0.00035616,7]
[341462348,1730908252674,-227.28205336,0.00035616,7]
[341462349,1730908252684,-500.0,0.00035616,7]
[341462350,1730908252694,-500.0,0.00035616,7]
[341462351,1730908252703,-500.0,0.00035616,7]
[341462352,1730908252713,-500.0,0.00035616,7]
[341462353,1730908252721,-500.0,0.00035616,7]
[341462354,1730908252731,-518.56564914,0.00035616,7]
[341462355,1730908252740,-505.00117474,0.00035616,7]
[341462356,1730908252749,-500.0,0.00035616,7]
[341462357,1730908252758,-500.0,0.00035616,7]
[341462358,1730908252767,-500.0,0.00035616,7]
[341462359,1730908252776,-501.98,0.00035616,7]
[341462360,1730908252785,-213.44250924,0.00035616,7]
[341462361,1730908252794,-500.0,0.00035616,7]
[341462362,1730908252803,-500.0,0.00035616,7]
[341462363,1730908252812,-500.0,0.00035616,7]
[341462364,1730908252821,-500.0,0.00035616,7]
[341462365,1730908252830,-2240.27,0.00035616,7]
[341462366,1730908252839,-500.0,0.00035616,7]
[341462367,1730908252848,-507.82,0.00035616,7]
[341462368,1730908252857,-507.82,0.00035616,7]
[341462369,1730908252866,-507.82,0.00035616,7]
[341462370,1730908252875,-2400.23,0.00035616,7]
[341462371,1730908252884,-507.82,0.00035616,7]
[341462372,1730908252894,-207.210861,0.00035616,7]
[341462373,1730908252906,-507.82,0.00035616,7]
[341462374,1730908252915,-500.0,0.00035616,7]
[341462375,1730908252924,-500.0,0.00035616,7]
[341462376,1730908252933,-507.82,0.00035616,7]
[341462377,1730908252943,-507.82,0.00035616,7]
[341462378,1730908252951,-500.0,0.00035616,7]
[341462379,1730908252961,-507.82,0.00035616,7]
[341462380,1730908252970,-500.0,0.00035616,7]
[341462381,1730908252979,-507.82,0.00035616,7]
[341462382,1730908252987,-507.82,0.00035616,7]
[341462383,1730908252997,-159.54410311,0.00035616,7]
[341462384,1730908253006,-500.0,0.00035616,7]
[341462385,1730908253015,-269.966248,0.00035616,7]
[341462386,1730908253024,-500.0,0.00035616,7]
[341462387,1730908253033,-507.82,0.00035616,7]
[341462388,1730908253042,-507.82,0.00035616,7]
[341462389,1730908253051,-500.0,0.00035616,7]
[341462390,1730908253060,-500.0,0.00035616,7]
[341462391,1730908253069,-500.0,0.00035616,7]
[341462392,1730908253079,-154.296734,0.00035616,7]
[341462393,1730908253088,-502.91597112,0.00035616,7]
[341462394,1730908253097,-500.0,0.00035616,7]
[341462395,1730908253105,-498.24744491,0.00035616,7]
[341462396,1730908253116,-918.09,0.00035616,7]
[341462397,1730908253127,-500.0,0.00035616,7]
[341462398,1730908253137,-13770.28,0.00035616,7]
[341462399,1730908253152,-500.0,0.00035616,7]
[341462400,1730908253162,-500.0,0.00035616,7]
[341462401,1730908253172,-2214.49,0.00035616,7]
[341462402,1730908253181,-500.0,0.00035616,7]
[341462403,1730908253191,-742.54,0.00035616,7]
[341462404,1730908253201,-712.46,0.00035616,7]
[341462405,1730908253210,-1665.65,0.00035616,7]
[341462406,1730908253220,-152.709931,0.00035616,7]
[341462407,1730908253229,-503.30629211,0.00035616,7]
[341462408,1730908253239,-500.0,0.00035616,7]
[341462409,1730908253248,-1207.59,0.00035616,7]
[341462410,1730908253258,-500.0,0.00035616,7]
[341462411,1730908253267,-723.92,0.00035616,7]
[341462412,1730908253277,-500.0,0.00035616,7]
[341462413,1730908253287,-500.0,0.00035616,7]
[341462414,1730908253296,-500.0,0.00035616,7]
[341462415,1730908253306,-500.0,0.00035616,7]
[341462416,1730908253315,-500.0,0.00035616,7]
[341462417,1730908253324,-500.0,0.00035616,7]
[341462418,1730908253333,-260.42178295,0.00035616,7]
[341462419,1730908253343,-498.26094126,0.00035616,7]
[341462420,1730908253352,-358.25947178,0.00035616,7]
[341462421,1730908253362,-500.0,0.00035616,7]
[341462422,1730908253371,-500.0,0.00035616,7]
[341462423,1730908253380,-500.0,0.00035616,7]
[341462424,1730908253390,-499.33066932,0.00035616,7]
[341462425,1730908253402,-592.24,0.00035616,7]
[341462426,1730908253412,-1370.72,0.00035616,7]
[341462427,1730908253422,-500.0,0.00035616,7]
[341462428,1730908253431,-500.0,0.00035616,7]
[341462429,1730908253440,-500.0,0.00035616,7]
[341462430,1730908253449,-516.06,0.00035616,7]
[341462431,1730908253459,-500.0,0.00035616,7]
[341462432,1730908253468,-3154.83,0.00035616,7]
[341462433,1730908253478,-4303.72594762,0.00035616,7]
[341462434,1730908253504,-5191.80057439,0.00035616,7]
[341462435,1730908261891,300.0,0.00019725,2]
[341462436,1730908263091,420.0,0.00021484,2]
[341462437,1730908263864,587.0,0.00023401,2]
[341462438,1730908264605,823.0,0.00025488,2]
[341462439,1730908265359,1020.0,0.00027761,2]
[341462440,1730908385893,300.0,0.00019725,2]
[341462441,1730908441285,300.0,0.00019725,2]
[341462444,1730908801760,300.0,0.00019725,2]
[341462445,1730908810674,250.0,0.00021,2]
[341462447,1730908942257,169.65,0.00015342,2]
[341462448,1730909078746,150.0,0.000211,2]
[341462449,1730909135099,-226.41735,0.00022336,2]
[341462450,1730909135120,-830.20838863,0.00022449,2]
[341462451,1730909135153,-164.82687526,0.00022449,2]
[341462453,1730909346701,-1600.0,0.00022448,2]
[341462454,1730909346722,-5285.086824,0.00022449,2]
[341462455,1730909354984,-39410.90578008,0.00022449,2]
[341462456,1730909355005,-300.0,0.00023,2]
[341462457,1730909355029,-526.0,0.00023301,2]
[341462458,1730909355051,-350.0,0.00025,2]
[341462459,1730909355072,-400.0,0.00027,2]
[341462460,1730909355091,-946.0,0.000275,2]
[341462461,1730909355111,-780.84,0.000275,2]
[341462462,1730909355131,-150.99,0.000275,2]
[341462463,1730909355150,-1638.78938491,0.00028681,2]
[341462464,1730909355170,-200.0,0.000288,2]
[341462465,1730909355189,-450.0,0.00029,2]
[341462466,1730909355726,-185.098,0.0003,2]
[341462467,1730909355746,-177.33,0.00030137,2]
[341462468,1730909355765,-11332.04464122,0.0003049,2]
[341462469,1730909359111,-1677.94,0.00030799,2]
[341462470,1730909359402,-1803.31903699,0.00031,2]
[341462471,1730909359424,-500.0,0.00031,2]
[341462472,1730909359444,-3741.38137788,0.0003164,2]
[341462473,1730909359464,-171.99,0.0003183,2]
[341462474,1730909360603,516.67592934,0.000275,2]
[341462475,1730909360624,1281.32407066,0.000275,2]
[341462476,1730909361563,1619.0,0.000275,2]
[341462477,1730909368000,1630.31,0.00031168,2]
[341462478,1730909369273,7603.86660946,0.000309,2]
[341462479,1730909378210,177.33,0.00030137,2]
[341462480,1730909393430,200.0,0.00023,2]
[341462481,1730909394272,200.0,0.00023,2]
[341462511,1730909431795,-376.07,0.00032057,2]
[341462513,1730909431804,-945.07999999,0.00032253,2]
[341462514,1730909432010,-2253.48000001,0.00032253,2]
[341462515,1730909432020,-708.99,0.00032278,2]
[341462516,1730909432029,-200.0,0.00032288,7]
[341462517,1730909432038,-250.0,0.00032305,2]
[341462518,1730909432048,-500.0,0.00032314,2]
[341462519,1730909432057,-985.29,0.00032345,2]
[341462520,1730909432066,-653.02,0.00032361,2]
[341462521,1730909432082,-1264.77,0.00032367,2]
[341462522,1730909432092,-250.0,0.00032443,2]
[341462523,1730909432102,-23900.0,0.00032466,2]
[341462524,1730909432112,-5059.00420765,0.00032489,2]
[341462525,1730909432121,-376.07,0.00032572,2]
[341462526,1730909432131,-250.0,0.00032588,2]
[341462527,1730909432140,-203.504344,0.000327,2]
[341462528,1730909432150,-155.06,0.00032728,120]
[341462529,1730909432159,-150.0,0.0003273,2]
[341462530,1730909432169,-160.82,0.00032771,2]
[341462531,1730909432178,-163.16,0.00032857,2]
[341462532,1730909432188,-414.48,0.00032886,120]
[341462533,1730909432198,-300.0,0.000329,2]
[341462534,1730909432207,-550.0,0.00033,2]
[341462535,1730909432216,-376.07,0.00033087,2]
[341462536,1730909432226,-1475.73,0.00033161,2]
[341462537,1730909432235,-185.098,0.00033291,2]
[341462538,1730909432244,-1630.31,0.00033432,2]
[341462539,1730909432254,-500.0,0.00033497,2]
[341462540,1730909432263,-376.07,0.00033602,2]
[341462541,1730909432272,-170.01,0.00033808,120]
[341462543,1730909432282,-1000.0,0.00033866,2]
[341462545,1730909432291,-676.87533788,0.0003395,2]
[341462547,1730909432300,-676.87533787,0.0003395,2]
[341462549,1730909432310,-170.4,0.00033994,2]
[341462551,1730909432319,-376.07,0.00034117,2]
[341462553,1730909432328,-458.574,0.0003432,2]
[341462555,1730909432342,-5978.10937313,0.00034358,15]
[341462557,1730909432352,-160.82,0.0003441,2]
[341462559,1730909432361,-158.91,0.00034448,2]
[341462561,1730909432371,-1252.0,0.00034448,2]
[341462563,1730909432381,-1988.0,0.00034448,2]
[341462565,1730909432391,-150.572,0.00034448,2]
[341462567,1730909432401,-558.0,0.00034448,2]
[341462568,1730909432411,-1795.0,0.00034448,2]
[341462570,1730909432422,-813.0,0.00034448,2]
[341462572,1730909432432,-2907.0,0.00034448,2]
[341462574,1730909432441,-1257.0,0.00034448,2]
[341462576,1730909432451,-920.0,0.00034448,2]
[341462578,1730909432460,-3377.0,0.00034448,2]
[341462580,1730909432470,-376.07,0.00034632,2]
[341462582,1730909432479,-5978.10937304,0.00034752,15]
[341462584,1730909432490,-600.0,0.00035,2]
[341462586,1730909432499,-3000.0,0.00035,30]
[341462588,1730909432510,-2000.0,0.00035,7]
[341462609,1730909432729,-2000.0,0.00035,7]
[341462611,1730909432739,-5978.10937304,0.00035145,15]
[341462613,1730909432748,-376.07,0.00035147,2]
[341462614,1730909432757,-180.0,0.0003519,2]
[341462616,1730909432767,-173.35116725,0.0003525,41]
[341462618,1730909432776,-3055.87702249,0.0003526,2]
[341462620,1730909432786,-829.679,0.00035452,42]
[341462622,1730909432796,-414.48,0.0003547,120]
[341462624,1730909432806,-588.00631645,0.0003549,2]
[341462626,1730909432816,-500.0,0.00035499,7]
[341462628,1730909432826,-500.0,0.00035499,7]
[341462630,1730909432836,-500.0,0.00035499,7]
[341462632,1730909432846,-386.69591813,0.00035499,7]
[341462633,1730909432856,-500.0,0.00035499,7]
[341462634,1730909432865,-500.0,0.00035499,7]
[341462635,1730909432875,-500.0,0.00035499,7]
[341462636,1730909432884,-500.0,0.00035499,7]
[341462637,1730909432894,-1000.0,0.000355,12]
[341462638,1730909432904,-172.12,0.00035506,10]
[341462639,1730909432913,-172.63186318,0.00035516,2]
[341462640,1730909432922,-180.73119294,0.00035516,2]
[341462641,1730909432932,-13610.0,0.00035531,2]
[341462642,1730909432941,-1157.0,0.00035531,2]
[341462643,1730909432951,-226.726,0.00035531,2]
[341462644,1730909432961,-165.842,0.00035531,2]
[341462645,1730909432971,-5920.0,0.00035531,2]
[341462646,1730909432981,-5978.10937304,0.00035539,15]
[341462647,1730909432990,-500.0,0.00035573,2]
[341462648,1730909432999,-455.58585609,0.00035579,7]
[341462650,1730909433009,-150721.914582,0.0003558,2]
[341462652,1730909433019,-32797.1583792,0.0003558,2]
[341462654,1730909433028,-155.6295949,0.0003558,2]
[341462656,1730909433038,-217.0,0.00035589,120]
[341462658,1730909433048,-218.0,0.0003559,2]
[341462660,1730909433058,-142716.58900893,0.0003559,2]
[341462662,1730909433072,-8447.83086702,0.0003559,2]
[341462664,1730909433085,-2463.18508159,0.0003559,2]
[341462781,1730909437854,-1089.0,0.00035531,2]
[341462782,1730909437864,-500.0,0.00035573,5]
[341462783,1730909437874,-9737.711,0.0003559,2]
[341462784,1730909437886,-2057.49691761,0.0003559,2]
[341462785,1730909437897,-37616.033428,0.0003559,2]
[341462786,1730909438079,-117.40285994,0.0003559,2]
[341462934,1730909439865,-371.72,0.0003559,2]
[341462938,1730909439887,-67017.39063878,0.0003559,2]
[341462951,1730909440003,-1414.12,0.0003559,2]
[341463039,1730909440868,-3389.72110366,0.0003559,2]
[341463046,1730909440925,-2087.76569971,0.0003559,2]
[341463058,1730909441033,-3717.02107244,0.0003559,2]
[341463065,1730909441090,-1199.76047271,0.0003559,2]
[341463067,1730909441101,-5265.99999998,0.0003559,2]
[341463069,1730909441112,-18613.25,0.0003559,2]
[341463071,1730909441123,-12952.36470765,0.0003559,2]
[341463257,1730909442860,-132980.38088798,0.0003559,2]
[341463260,1730909442869,-590348.850826,0.0003559,2]
[341463262,1730909442879,-155.6295949,0.0003559,2]
[341463264,1730909442888,-500.0,0.00035599,2]
[341463266,1730909442898,-150.0,0.00035599,7]
[341463268,1730909442907,-40574.26,0.000356,60]
[341463270,1730909442917,-398.0,0.000356,21]
[341463272,1730909442927,-1157519.2226636,0.000356,7]
[341463274,1730909442936,-151.0,0.000356,7]
[341463276,1730909442946,-151.0,0.000356,7]
[341463278,1730909442960,-151.0,0.000356,7]
[341463280,1730909442970,-1947.506086,0.000356,24]
[341463282,1730909442980,-2000.0,0.000356,12]
[341463284,1730909442989,-162.049693,0.000356,7]
[341463286,1730909442999,-151.0,0.000356,7]
[341463288,1730909443008,-151.0,0.000356,7]
[341463290,1730909443017,-894.551221,0.000356,19]
[341463292,1730909443027,-155.6295949,0.00035606,2]
[341463294,1730909443036,-285.91686223,0.00035615,2]
[341463296,1730909443046,-150.0,0.00035615,7]
[341463298,1730909443056,-152.681687,0.00035616,7]
[341463300,1730909443066,-157.480311,0.00035616,7]
[341463302,1730909443078,-154.296734,0.00035616,7]
[341463304,1730909443087,-500.0,0.00035616,7]
[341463306,1730909443096,-537.19838265,0.00035616,7]
[341463308,1730909443106,-500.0,0.00035616,7]
[341463310,1730909443116,-500.0,0.00035616,7]
[341463312,1730909443125,-532.87937953,0.00035616,7]
[341463314,1730909443134,-500.0,0.00035616,7]
[341463316,1730909443144,-500.0,0.00035616,7]
[341463318,1730909443153,-590.43140094,0.00035616,7]
[341463320,1730909443162,-500.0,0.00035616,7]
[341463322,1730909443172,-544.50501889,0.00035616,7]
[341463324,1730909443181,-500.0,0.00035616,7]
[341463326,1730909443191,-500.0,0.00035616,7]
[341463328,1730909443200,-500.0,0.00035616,5]
[341463330,1730909443209,-540.84478687,0.00035616,7]
[341463332,1730909443219,-634.61468753,0.00035616,7]
[341463334,1730909443228,-502.01262956,0.00035616,2]
[341463336,1730909443237,-500.0,0.00035616,7]
[341463338,1730909443247,-500.0,0.00035616,7]
[341463340,1730909443256,-500.0,0.00035616,7]
[341463342,1730909443266,-500.0,0.00035616,7]
[341463344,1730909443275,-500.0,0.00035616,7]
[341463346,1730909443285,-282.32546847,0.00035616,7]
[341463348,1730909443295,-771.52,0.00035616,7]
[341463350,1730909443304,-500.0,0.00035616,7]
[341463352,1730909443314,-500.0,0.00035616,7]
[341463354,1730909443323,-608.58,0.00035616,7]
[341463385,1730909443580,-500.0,0.00035616,7]
[341463387,1730909443595,-500.0,0.00035616,7]
[341463389,1730909443606,-500.0,0.00035616,7]
[341463391,1730909443616,-500.0,0.00035616,7]
[341463393,1730909443625,-500.0,0.00035616,7]
[341463395,1730909443635,-500.0,0.00035616,7]
[341463397,1730909443645,-500.0,0.00035616,7]
[341463398,1730909443654,-500.0,0.00035616,7]
[341463399,1730909443663,-500.0,0.00035616,7]
[341463400,1730909443673,-500.0,0.00035616,7]
[341463401,1730909443682,-500.0,0.00035616,7]
[341463402,1730909443691,-500.0,0.00035616,7]
[341463403,1730909443701,-500.0,0.00035616,7]
[341463404,1730909443711,-500.0,0.00035616,7]
[341463405,1730909443720,-500.0,0.00035616,7]
[341463406,1730909443730,-516.28143235,0.00035616,7]
[341463407,1730909443739,-500.0,0.00035616,7]
[341463408,1730909443749,-500.0,0.00035616,7]
[341463409,1730909443759,-500.0,0.00035616,7]
[341463410,1730909443768,-500.0,0.00035616,7]
[341463411,1730909443779,-500.0,0.00035616,7]
[341463412,1730909443789,-614.35304938,0.00035616,7]
[341463413,1730909443798,-500.0,0.00035616,7]
[341463414,1730909443808,-718.09,0.00035616,7]
[341463415,1730909443818,-500.0,0.00035616,7]
[341463417,1730909443828,-500.0,0.00035616,7]
[341463418,1730909443837,-500.0,0.00035616,7]
[341463419,1730909443847,-500.0,0.00035616,7]
[341463420,1730909443856,-500.0,0.00035616,7]
[341463421,1730909443867,-712.84,0.00035616,7]
[341463422,1730909443877,-1240.83,0.00035616,7]
[341463423,1730909443886,-587.2547098,0.00035616,7]
[341463425,1730909443895,-521.44,0.00035616,7]
[341463426,1730909443904,-568.33585575,0.00035616,7]
[341463427,1730909443914,-500.0,0.00035616,7]
[341463428,1730909443923,-512.56174397,0.00035616,7]
[341463429,1730909443934,-500.0,0.00035616,7]
[341463430,1730909443943,-500.0,0.00035616,7]
[341463431,1730909443952,-569.36155726,0.00035616,7]
[341463433,1730909443962,-500.0,0.00035616,7]
[341463435,1730909443971,-500.0,0.00035616,7]
[341463437,1730909443980,-1043.63,0.00035616,7]
[341463439,1730909443990,-500.0,0.00035616,7]
[341463441,1730909443999,-500.0,0.00035616,7]
[341463442,1730909444008,-500.0,0.00035616,7]
[341463443,1730909444017,-500.0,0.00035616,7]
[341463444,1730909444027,-500.0,0.00035616,7]
[341463445,1730909444036,-532.98,0.00035616,7]
[341463446,1730909444045,-500.0,0.00035616,7]
[341463447,1730909444055,-500.0,0.00035616,7]
[341463448,1730909444064,-598.2501986,0.00035616,7]
[341463449,1730909444073,-500.0,0.00035616,7]
[341463450,1730909444082,-500.0,0.00035616,7]
[341463451,1730909444094,-500.0,0.00035616,7]
[341463452,1730909444107,-500.0,0.00035616,7]
[341463453,1730909444117,-500.0,0.00035616,7]
[341463454,1730909444126,-500.0,0.00035616,7]
[341463455,1730909444136,-500.0,0.00035616,7]
[341463456,1730909444145,-500.0,0.00035616,7]
[341463457,1730909444155,-500.0,0.00035616,7]
[341463458,1730909444164,-504.02510886,0.00035616,7]
[341463459,1730909444174,-500.0,0.00035616,7]
[341463460,1730909444183,-500.0,0.00035616,7]
[341463461,1730909444193,-500.0,0.00035616,7]
[341463462,1730909444202,-500.0,0.00035616,7]
[341463463,1730909444212,-500.0,0.00035616,7]
[341463464,1730909444221,-500.0,0.00035616,7]
[341463465,1730909444231,-500.0,0.00035616,7]
[341463466,1730909444241,-500.0,0.00035616,7]
[341463467,1730909444251,-500.0,0.00035616,7]
[341463468,1730909444262,-1000.0,0.00035616,10]
[341463469,1730909444271,-500.0,0.00035616,7]
[341463470,1730909444281,-500.0,0.00035616,7]
[341463471,1730909444291,-500.0,0.00035616,7]
[341463472,1730909444300,-500.0,0.00035616,7]
[341463473,1730909444310,-500.0,0.00035616,7]
[341463474,1730909444320,-500.0,0.00035616,7]
[341463475,1730909444329,-500.0,0.00035616,5]
[341463476,1730909444345,-500.0,0.00035616,7]
[341463477,1730909444355,-500.0,0.00035616,7]
[341463478,1730909444365,-500.0,0.00035616,7]
[341463479,1730909444376,-500.0,0.00035616,7]
[341463480,1730909444387,-500.0,0.00035616,7]
[341463481,1730909444397,-500.0,0.00035616,7]
[341463482,1730909444407,-500.0,0.00035616,7]
[341463483,1730909444416,-500.0,0.00035616,7]
[341463484,1730909444428,-500.0,0.00035616,7]
[341463485,1730909444438,-500.0,0.00035616,7]
[341463486,1730909444448,-510.25748576,0.00035616,7]
[341463487,1730909444457,-500.0,0.00035616,7]
[341463488,1730909444467,-500.0,0.00035616,7]
[341463489,1730909444476,-500.0,0.00035616,7]
[341463490,1730909444486,-643.31991217,0.00035616,7]
[341463491,1730909444495,-500.0,0.00035616,7]
[341463492,1730909444505,-500.0,0.00035616,7]
[341463493,1730909444514,-500.0,0.00035616,7]
[341463494,1730909444523,-500.0,0.00035616,7]
[341463495,1730909444532,-500.0,0.00035616,7]
[341463496,1730909444541,-500.0,0.00035616,7]
[341463497,1730909444550,-498.9773257,0.00035616,7]
[341463498,1730909444560,-526.45,0.00035616,7]
[341463499,1730909444569,-500.0,0.00035616,7]
[341463500,1730909444578,-500.0,0.00035616,7]
[341463501,1730909444589,-500.0,0.00035616,7]
[341463502,1730909444599,-500.0,0.00035616,7]
[341463503,1730909444608,-500.0,0.00035616,7]
[341463504,1730909444617,-500.0,0.00035616,7]
[341463505,1730909444626,-500.0,0.00035616,7]
[341463506,1730909444635,-500.0,0.00035616,7]
[341463507,1730909444644,-500.0,0.00035616,7]
[341463508,1730909444653,-500.0,0.00035616,7]
[341463509,1730909444662,-500.0,0.00035616,7]
[341463510,1730909444672,-500.0,0.00035616,7]
[341463511,1730909444681,-500.0,0.00035616,7]
[341463512,1730909444690,-500.0,0.00035616,7]
[341463513,1730909444699,-500.0,0.00035616,7]
[341463514,1730909444709,-500.0,0.00035616,7]
[341463515,1730909444718,-500.0,0.00035616,7]
[341463516,1730909444727,-500.0,0.00035616,7]
[341463517,1730909444735,-500.0,0.00035616,7]
[341463518,1730909444745,-568.43,0.00035616,7]
[341463519,1730909444754,-500.0,0.00035616,7]
[341463520,1730909444763,-500.0,0.00035616,7]
[341463521,1730909444771,-589.93,0.00035616,7]
[341463522,1730909444780,-537.86,0.00035616,7]
[341463523,1730909444789,-500.0,0.00035616,7]
[341463524,1730909444798,-500.0,0.00035616,7]
[341463525,1730909444807,-500.0,0.00035616,7]
[341463526,1730909444816,-500.0,0.00035616,7]
[341463527,1730909444825,-223.3167126,0.00035616,7]
[341463528,1730909444834,-500.0,0.00035616,7]
[341463529,1730909444846,-601.79608397,0.00035616,7]
[341463530,1730909444856,-500.0,0.00035616,7]
[341463531,1730909444867,-500.0,0.00035616,7]
[341463532,1730909444877,-712.82,0.00035616,7]
[341463533,1730909444887,-500.0,0.00035616,7]
[341463534,1730909444897,-500.0,0.00035616,7]
[341463535,1730909444906,-500.0,0.00035616,7]
[341463536,1730909444916,-500.0,0.00035616,7]
[341463537,1730909444925,-500.0,0.00035616,7]
[341463538,1730909444935,-500.0,0.00035616,7]
[341463539,1730909444946,-500.0,0.00035616,7]
[341463540,1730909444956,-500.0,0.00035616,7]
[341463541,1730909444966,-500.0,0.00035616,7]
[341463542,1730909444976,-500.0,0.00035616,7]
[341463543,1730909444985,-500.0,0.00035616,7]
[341463544,1730909444995,-500.0,0.00035616,7]